[Event "44th Chess Olympiad Women 2022"]
[Site "Chennai"]
[Date "2022.07.29"]
[Round "1.8"]
[White "Phiri Bertha"]
[Black "Schneider, Jana"]
[Result "0-1"]
[ECO "C44"]
[WhiteElo "1606"]
[BlackElo "2342"]
[Annotator "TA"]
[PlyCount "108"]
[EventDate "2022.07.29"]
[EventType "team-tourn"]
[EventCountry "IND"]
[SourceTitle "playchess.com"]
[Source "ChessBase"]
[SourceQuality "1"]
[WhiteTeam "Zambia"]
[BlackTeam "Germany"]
[WhiteTeamCountry "ZAM"]
[BlackTeamCountry "GER"]
[TimeControl "40/5400+30:1800+30"]

{[%evp 13,108,0,6,-38,-29,-42,-43,-47,-47,-47,-51,-60,-55,-97,-43,-39,-40,-56,-54,-72,-37,-57,-61,-91,-34,-55,-53,-109,-119,-118,-109,-141,-137,-147,-141,-137,-129,-158,-164,-168,-167,-235,-244,-186,-219,-243,-234,-309,-303,-292,-293,-311,-319,-315,-227,-443,-429,-414,-421,-494,-485,-504,-502,-608,-550,-726,-681,-848,-848,-788,-760,-760,-732,-29973,-749,-29974,-29973,-29973,-29974,-5635,-5635,-29985,-29986,-29990,-29991,-29991,-29992,-29992,-29992,-29995,-29995,-29995,-29996,-29997,-29998,-29998,-29999]} 1. e4 {[%emt 0:00:08]} e5 {[%emt 0:00:16]} 2. d3 {[%emt 0:00:37]} Nf6 {[%emt 0:01:56]} 3. Nf3 {[%emt 0:00:09]} Nc6 {[%emt 0:00:18]} 4. g3 {[%emt 0:01:06]} Bc5 {[%emt 0:01:42]} 5. Bg2 {[%emt 0:00:21]} d5 {[%emt 0:05:47]} 6. exd5 {[%emt 0:03:12]} Nxd5 {[%emt 0:00:11]} 7. O-O {[%emt 0:01:44]} O-O {[%emt 0:01:05]} 8. h3 {[%emt 0:04:05] [#] C44: Ponziani Opening and Scotch Gambit.} f6 $146 {[%emt 0:02:59]} ({Predecessor:} 8... a5 9. Nbd2 Re8 10. Ne4 Be7 11. c3 a4 12. Ned2 Bf5 13. Nc4 Bf6 14. Nh2 Nb6 15. Nxb6 cxb6 {0-1 (67) Herrera Reyes,J (2193)-Hidalgo Santana,F (2193) Santa Cruz de Tenerife 2015}) 9. Bd2 {[%emt 0:04:23]} Be6 {[%emt 0:02:03]} 10. Nc3 {[%emt 0:00:46] Black is slightly better.} Qd7 {[%emt 0:05:00]} 11. Kh2 {[%emt 0:00:06]} Rad8 {[%emt 0:01:38]} 12. Qe2 {[%emt 0:02:09]} Rfe8 {[%emt 0:02:30]} 13. Rad1 {[%emt 0:07:36]} Nb6 {[%emt 0:06:21]} ({Better is} 13... Nxc3 $17 14. Bxc3 a5) 14. a3 $15 {[%emt 0:07:56]} Bf7 {[%emt 0:02:29]} 15. Be3 {[%emt 0:03:36]} Nd4 {[%emt 0:02:21]} 16. Qd2 {[%emt 0:00:40]} Bf8 {[%emt 0:03:57] Black is much more active.} 17. Rde1 {[%emt 0:02:41]} c5 {[%emt 0:05:21][%cal Oe5e4]} 18. b3 {[%emt 0:07:28]} c4 {[%emt 0:03:38]} ({Black should try} 18... e4 $17 19. Nxe4 Rxe4 $1 20. dxe4 Nxf3+ 21. Bxf3 Qxd2 22. Bxd2 Rxd2) 19. Bxd4 {[%emt 0:00:47]} exd4 {[%emt 0:00:16]} 20. Ne2 {[%emt 0:03:07] White is now going downhill.} (20. Rxe8 $1 $15 Rxe8 21. Ne2) 20... cxb3 $17 {[%emt 0:01:02]} 21. cxb3 {[%emt 0:04:13]} Bxa3 {[%emt 0:05:41]} 22. Nexd4 {[%emt 0:10:33]} Bc5 {[%emt 0:02:52] A strong pair of Bishops.} 23. Rxe8+ {[%emt 0:07:45]} Bxe8 {[%emt 0:00:29]} ({Weaker is} 23... Rxe8 24. Nc2 $17) 24. Ne2 {[%emt 0:06:24]} Qxd3 {[%emt 0:00:56]} 25. Qa2 {[%emt 0:00:33]} Nd5 {[%emt 0:06:17]} 26. b4 {[%emt 0:06:42] [#]} Bb6 {[%emt 0:02:12] Threatens to win with ...Bf7.} ({Resist} 26... Bxb4 27. Nf4 Qa6 28. Qxa6 bxa6 29. Rd1 $14) 27. Nf4 {[%emt 0:00:36]} (27. Ne1 {keeps fighting.} Qf5 28. Nc3) 27... Qa6 $19 {[%emt 0:03:32]} 28. Qxa6 {[%emt 0:05:40]} bxa6 {[%emt 0:00:06]} 29. Nxd5 {[%emt 0:02:34]} Rxd5 {[%emt 0:00:06]} 30. Kg1 {[%emt 0:00:42]} Rb5 {[%emt 0:05:06]} 31. Re1 {[%emt 0:04:50]} Bf7 {[%emt 0:00:52]} 32. Bf1 {[%emt 0:00:15]} Rxb4 {[%emt 0:01:23]} 33. Bxa6 {[%emt 0:00:12]} Bd5 {[%emt 0:01:30]} 34. Nh4 {[%emt 0:02:12]} (34. Nd2 {is a better defense.}) 34... Rb2 {[%emt 0:00:52]} 35. Rf1 {[%emt 0:00:24]} Ra2 {[%emt 0:02:40]} 36. Bd3 {[%emt 0:00:48]} a5 {[%emt 0:01:38]} 37. Nf5 {[%emt 0:00:23] Strongly threatening Ne7+.} Kf8 {[%emt 0:00:34] Inhibits Ne7.} 38. Bb5 {[%emt 0:01:00]} Rb2 {[%emt 0:00:58]} 39. Bd3 {[%emt 0:00:19]} a4 {[%emt 0:00:52] And now ...a3 would win.} 40. Ne3 {[%emt 0:00:06]} Bxe3 {[%emt 0:00:34]} 41. fxe3 {[%emt 0:30:52][%mdl 4096] Endgame KRB-KRB} Rg2+ {[%emt 0:30:08]} 42. Kh1 {[%emt 0:00:01]} Rxg3+ {[%emt 0:00:47]} 43. Kh2 {[%emt 0:00:02]} Rg2+ {[%emt 0:00:09]} 44. Kh1 {[%emt 0:00:02]} Rf2+ {[%emt 0:01:13]} 45. Kg1 {[%emt 0:00:10]} Rxf1+ {[%emt 0:00:29]} 46. Kxf1 {[%emt 0:01:12] KB-KB} a3 {[%emt 0:00:09] ( -> ...a2)} 47. Bxh7 {[%emt 0:01:07]} a2 {[%emt 0:00:07] Black mates.} 48. e4 {[%emt 0:00:03]} a1=Q+ {[%emt 0:00:14]} 49. Kf2 {[%emt 0:00:29]} Qd4+ {[%emt 0:00:15]} 50. Kf3 {[%emt 0:00:12]} Qd3+ {[%emt 0:00:29]} 51. Kf4 {[%emt 0:00:06]} g5+ {[%emt 0:00:10]} 52. Kg4 {[%emt 0:00:44]} Be6+ {[%emt 0:00:13]} 53. Kh5 {[%emt 0:00:07]} Kg7 {[%emt 0:00:22][%cal Rd3h3]} 54. Bf5 {[%emt 0:00:18]} Bxf5 {[%emt 0:00:26] Weighted Error Value: White=0.56/Black=0.07 (flawless)} 0-1

[Event "44th Chess Olympiad Women 2022"]
[Site "Chennai"]
[Date "2022.07.29"]
[Round "1.9"]
[White "Gaboyan, Susanna"]
[Black "Otisitswe Ruth"]
[Result "1-0"]
[ECO "A07"]
[WhiteElo "2270"]
[BlackElo "1552"]
[Annotator "TA"]
[PlyCount "105"]
[EventDate "2022.07.29"]
[EventType "team-tourn"]
[EventCountry "IND"]
[SourceTitle "playchess.com"]
[Source "ChessBase"]
[SourceQuality "1"]
[WhiteTeam "Armenia"]
[BlackTeam "Botswana"]
[WhiteTeamCountry "ARM"]
[BlackTeamCountry "BOT"]
[TimeControl "40/5400+30:1800+30"]

{[%evp 14,104,-10,-25,-8,-6,10,19,7,16,36,22,57,70,72,67,81,75,85,78,79,77,86,85,156,149,143,85,89,83,67,-159,-144,-183,-135,-172,-175,-179,-184,-174,-179,-170,-28,-17,-35,-42,-17,-18,-18,-28,-25,-19,17,0,0,0,0,0,0,0,0,0,495,446,755,703,1110,1348,1393,1107,29983,29984,29985,29986,29986,29986,29988,29988,29988,29989,29990,29991,29992,29992,29992,29992,29994,29995,29997,29998,29998,29999,29999]} 1. Nf3 {[%emt 0:00:06]} Nc6 {[%emt 0:00:12]} 2. g3 {[%emt 0:00:16]} e5 {[%emt 0:00:23]} 3. d3 {[%emt 0:00:11]} d5 {[%emt 0:00:47]} 4. Bg2 {[%emt 0:00:06]} Be7 {[%emt 0:00:42]} 5. O-O {[%emt 0:00:09]} Nf6 {[%emt 0:01:31]} 6. Nbd2 {[%emt 0:00:14][%cal Bb1d2,Bd2c4,Bc4e5][%mdl 32]} O-O {[%emt 0:00:32]} 7. e4 {[%emt 0:00:08]} dxe4 {[%emt 0:00:28]} 8. dxe4 {[%emt 0:00:07]} Be6 {[%emt 0:04:04] A07: Réti Opening: New York and Capablanca Systems.} 9. Qe2 {[%emt 0:00:54] [#]} Qd7 $146 {[%emt 0:05:49]} ({Predecessor:} 9... Qd6 10. c3 a5 11. a4 Rfd8 12. Re1 Qc5 13. Bf1 Qa7 14. h3 Nd7 15. Nc4 f6 16. Ne3 {½-½ (33) Eremin,N (2238)-Hechl,G (2252) ICCF email 2017}) 10. Nc4 {[%emt 0:01:23]} Nd4 {[%emt 0:01:03] The position is equal.} 11. Nxd4 {[%emt 0:00:15]} exd4 {[%emt 0:00:36]} 12. Ne5 {[%emt 0:01:06]} Qa4 {[%emt 0:04:24]} 13. f4 {[%emt 0:02:17]} Qa5 {[%emt 0:07:42]} 14. Nd3 {[%emt 0:05:49] f5 is the strong threat.} Bc4 {[%emt 0:10:04][%cal Be6c4,Bc4a6,Ba6d3,Bd3e2][%mdl 32]} 15. Bd2 {[%emt 0:05:45]} Qb6 {[%emt 0:05:25]} 16. b3 $1 {[%emt 0:01:02]} Ba6 {[%emt 0:01:02]} 17. e5 {[%emt 0:00:36]} Nd7 {[%emt 0:00:24]} 18. a4 {[%emt 0:06:03]} Nc5 {[%emt 0:11:11] [#]} (18... Rad8 $142) 19. f5 $1 $16 {[%emt 0:26:14][%cal Of5f6] Black must now prevent f6!} Rfe8 {[%emt 0:18:42]} 20. Qg4 {[%emt 0:08:47] White is more active.} ({White should play} 20. Bd5 Nxd3 21. cxd3) 20... Nxd3 {[%emt 0:03:08]} (20... Bxd3 $2 21. cxd3 Kh8 22. f6 (22. Qxd4 Nxb3 23. Qxb6 axb6 $17) 22... gxf6 23. Qh5 $18 (23. Qxd4 Nxb3 24. Qxb6 axb6 $17) (23. Bh6 Rg8 $16)) 21. cxd3 {[%emt 0:10:31]} Bxd3 {[%emt 0:03:30]} 22. Bd5 $2 {[%emt 0:11:16] [#]} Be2 $1 {[%emt 0:05:03][%mdl 512]} 23. Qf4 {[%emt 0:03:06]} ({Wrong is} 23. Qxe2 $2 d3+ 24. Qf2 Bc5 $19) (23. Qe4 Bxf1) 23... d3+ {[%emt 0:08:36]} (23... Rad8 $19 24. a5 Qa6) 24. Kh1 {[%emt 0:01:00]} Rad8 {[%emt 0:00:47]} ({Weaker is} 24... Bxf1 25. Rxf1 Rad8 26. Qc4 Rxd5 27. Qxd5) 25. Qc4 {[%emt 0:02:13]} Rxd5 {[%emt 0:05:40]} 26. Qxd5 {[%emt 0:00:07]} Bxf1 {[%emt 0:00:12]} 27. Rxf1 {[%emt 0:00:07]} Qc6 {[%emt 0:00:11] Prevents Qd7.} (27... Rd8 $19 28. Qc4 c5) 28. Qxc6 $11 {[%emt 0:01:45]} bxc6 {[%emt 0:00:05][%mdl 4096] Endgame KRB-KRB} 29. Rc1 {[%emt 0:00:21]} c5 {[%emt 0:00:21]} 30. Kg2 {[%emt 0:02:08]} Bf8 {[%emt 0:01:38]} 31. Bf4 {[%emt 0:00:02]} f6 {[%emt 0:00:49]} 32. e6 {[%emt 0:00:16]} Bd6 {[%emt 0:00:05]} 33. Bxd6 {[%emt 0:03:36]} cxd6 {[%emt 0:00:06] KR-KR} 34. Rd1 {[%emt 0:00:03]} Kf8 {[%emt 0:00:21]} 35. Rxd3 {[%emt 0:00:14]} Ke7 {[%emt 0:00:11]} 36. Kf3 {[%emt 0:00:04]} g6 {[%emt 0:00:25]} 37. g4 {[%emt 0:00:21][%cal Bg3g4,Bg4h5,Bh5h6,Bh6h7][%mdl 32] aiming for Ke4.} g5 $2 {[%emt 0:00:57][%mdl 8192] Black is on the road to losing.} (37... Rb8 $11) 38. Ke4 $18 {[%emt 0:00:09] And now Rh3 would win.} Rb8 {[%emt 0:00:54]} (38... Rh8 $142 39. Rh3 h6) 39. Rh3 {[%emt 0:01:07]} h5 {[%emt 0:01:14]} 40. gxh5 {[%emt 0:03:18]} Rb4+ {[%emt 0:00:33]} 41. Kd5 {[%emt 0:34:35] h6 would kill now.} Rb8 {[%emt 0:30:34]} 42. h6 {[%emt 0:00:15] White mates.} Rh8 {[%emt 0:00:17]} 43. h7 {[%emt 0:00:10]} g4 {[%emt 0:00:22]} 44. Rh6 {[%emt 0:00:12]} a5 {[%emt 0:00:13]} 45. Rh5 {[%emt 0:00:12]} c4 {[%emt 0:00:39]} 46. bxc4 {[%emt 0:00:06]} Ke8 {[%emt 0:00:13]} 47. Kxd6 {[%emt 0:00:05]} Kd8 {[%emt 0:00:13]} 48. c5 {[%emt 0:00:10]} Ke8 {[%emt 0:00:09]} 49. c6 {[%emt 0:00:05]} Kd8 {[%emt 0:00:06]} 50. e7+ {[%emt 0:00:11]} Ke8 {[%emt 0:00:12]} 51. Ke6 {[%emt 0:00:17]} g3 {[%emt 0:00:17]} 52. c7 {[%emt 0:00:06][%cal Rc7c8]} g2 {[%emt 0:00:04]} 53. c8=R# {[%emt 0:00:06] Weighted Error Value: White=0.14 (very precise) /Black=0.38} 1-0

[Event "44th Chess Olympiad Women 2022"]
[Site "Chennai"]
[Date "2022.07.29"]
[Round "1.9"]
[White "Besa, Masaiti"]
[Black "Danielian, Elina"]
[Result "0-1"]
[ECO "B08"]
[WhiteElo "1745"]
[BlackElo "2441"]
[Annotator "TA"]
[PlyCount "68"]
[EventDate "2022.07.29"]
[EventType "team-tourn"]
[EventCountry "IND"]
[SourceTitle "playchess.com"]
[Source "ChessBase"]
[SourceQuality "1"]
[WhiteTeam "Botswana"]
[BlackTeam "Armenia"]
[WhiteTeamCountry "BOT"]
[BlackTeamCountry "ARM"]
[TimeControl "40/5400+30:1800+30"]

{[%evp 12,68,38,34,41,29,56,31,39,59,58,50,61,47,35,-70,-72,-88,-88,-86,-88,-97,-98,-122,-114,-132,-90,-238,-241,-334,-325,-451,-442,-443,-443,-604,-569,-611,-585,-1039,-971,-1059,-1051,-1055,-1053,-1049,-996,-1035,-1020,-987,-927,-1357,-1141,-29987,-29988,-29991,-29992,-29992,-29993]} 1. d4 {[%emt 0:00:07] Finkel,A} Nf6 {[%emt 0:00:34]} 2. Bf4 {[%emt 0:00:34]} g6 {[%emt 0:01:50]} 3. Nf3 {[%emt 0:03:47]} Bg7 {[%emt 0:00:07]} 4. Nc3 {[%emt 0:00:17]} d6 {[%emt 0:06:07]} 5. Qd2 {[%emt 0:00:58]} c6 {[%emt 0:02:10]} 6. e4 {[%emt 0:09:55]} O-O {[%emt 0:07:53]} 7. O-O-O {[%emt 0:00:00]} Bg4 {[%emt 0:06:59] B08: Pirc Defence: Classical System.} 8. Bh6 {[%emt 0:00:00]} b5 {[%emt 0:08:14]} 9. Bxg7 {[%emt 0:03:38]} Kxg7 {[%emt 0:00:04] White is slightly better.} 10. h3 {[%emt 0:02:32]} Bxf3 {[%emt 0:00:35]} 11. gxf3 {[%emt 0:00:09]} Nbd7 {[%emt 0:00:54]} 12. h4 {[%emt 0:00:50] [#]} h5 $146 {[%emt 0:08:44]} ({Predecessor:} 12... b4 13. Ne2 Qa5 14. Kb1 h5 15. Rg1 Rh8 16. Bh3 Rab8 17. Rg5 Qc7 18. Nf4 Nf8 {0-1 (42) Reefat,B (2467)-Nikolic,P (2657) Istanbul 2000 EXT 2001 [Finkel,A]}) 13. f4 {[%emt 0:06:05]} (13. Rg1 $14) 13... b4 $15 {[%emt 0:02:11]} 14. e5 {[%emt 0:00:34]} bxc3 {[%emt 0:00:54]} 15. exf6+ {[%emt 0:00:07]} Nxf6 {[%emt 0:01:45]} 16. Qxc3 {[%emt 0:02:55]} e6 {[%emt 0:02:42]} 17. Bd3 {[%emt 0:02:01]} Rb8 {[%emt 0:06:29][%cal Ba8b8,Bb8b6,Bb6b2][%mdl 32]} 18. Qxc6 {[%emt 0:09:28]} Nd5 {[%emt 0:08:00] Threatens to win with ...Rb6.} 19. a3 {[%emt 0:05:14] [#]} (19. Bc4 $17) 19... Rb6 $1 $19 {[%emt 0:04:05]} ({And not} 19... Nxf4 20. Qe4 Qf6 21. f3 $17) ({Weaker is} 19... Qf6 20. Qxd6 Nxf4 21. Qe5 $14) 20. Qa4 {[%emt 0:04:30]} Qb8 {[%emt 0:00:50]} ({Worse is} 20... Nxf4 21. Qxa7 d5 22. Bf1 $11) 21. f5 {[%emt 0:06:47]} Rxb2 {[%emt 0:07:33] Hoping for ...Rc8.} 22. Rdg1 {[%emt 0:04:08][%cal Rf5g6]} exf5 {[%emt 0:07:10]} 23. Bxf5 {[%emt 0:04:30]} Qb6 {[%emt 0:04:25] Strongly threatening ...Nc3.} 24. Kd2 {[%emt 0:10:26] Prevents Nc3.} Qc7 {[%emt 0:02:48]} 25. Rg3 {[%emt 0:01:27] Inhibits Qc3+.} Nb6 {[%emt 0:01:16][%cal Bd5b6,Bb6c4,Bc4a3,Ba3c2,Bc2e1][%mdl 32]} 26. Qa6 {[%emt 0:02:59]} Nc4+ {[%emt 0:06:19]} 27. Kd3 {[%emt 0:04:54] [#]} Nxa3 $1 {[%emt 0:02:20][%mdl 512]} 28. Ke2 {[%emt 0:06:35]} Nxc2 {[%emt 0:00:27]} 29. Kf1 {[%emt 0:01:19]} Re8 {[%emt 0:00:48][%cal Oc2e3]} 30. Qd3 {[%emt 0:02:28] Prevents Ne3+.} Ne1 {[%emt 0:00:24]} 31. Qd1 {[%emt 0:02:26]} d5 {[%emt 0:00:42] ( -> ...Qf4)} 32. Rhg1 {[%emt 0:04:11]} Qf4 {[%emt 0:00:25][%csl Gf4,LRf2,LRf5,LRh4][%cal Rb2f2] Black mates.} 33. Rxg6+ {[%emt 0:00:33]} fxg6 {[%emt 0:00:04]} 34. Rxg6+ {[%emt 0:00:09]} Kf7 {[%emt 0:00:27] White got outplayed after the opening.  Weighted Error Value: White=0.91/Black=0.15 (very precise)} 0-1

[Event "44th Chess Olympiad Women 2022"]
[Site "Chennai"]
[Date "2022.07.29"]
[Round "1.9"]
[White "Banda Natalie Katlo"]
[Black "Mkrtchyan, Mariam"]
[Result "0-1"]
[ECO "D05"]
[WhiteElo "1688"]
[BlackElo "2285"]
[Annotator "TA"]
[PlyCount "60"]
[EventDate "2022.07.29"]
[EventType "team-tourn"]
[EventCountry "IND"]
[SourceTitle "playchess.com"]
[Source "ChessBase"]
[SourceQuality "1"]
[WhiteTeam "Botswana"]
[BlackTeam "Armenia"]
[WhiteTeamCountry "BOT"]
[BlackTeamCountry "ARM"]
[TimeControl "40/5400+30:1800+30"]

{[%evp 13,60,-15,-10,-33,-42,-63,-65,-81,-85,-89,-94,-93,-83,-86,-81,-77,-84,-120,-102,-94,-93,-207,-211,-181,-180,-261,-252,-255,-234,-248,-256,-339,-343,-335,-332,-344,-347,-422,-311,-308,-302,-324,-343,-389,-381,-379,-352,-1229,-1217]} 1. d4 {[%emt 0:00:06]} d5 {[%emt 0:00:07]} 2. Nf3 {[%emt 0:00:06]} Nf6 {[%emt 0:00:15]} 3. e3 {[%emt 0:00:10]} e6 {[%emt 0:02:52]} 4. Bd3 {[%emt 0:00:39]} c5 {[%emt 0:00:12]} 5. c3 {[%emt 0:00:15]} b6 {[%emt 0:03:17]} 6. Nbd2 {[%emt 0:01:00]} Bb7 {[%emt 0:00:51]} 7. Ne5 {[%emt 0:00:24]} Nbd7 {[%emt 0:02:43]} 8. Ndf3 {[%emt 0:00:37] D05: Colle System with ...e6.} Bd6 {[%emt 0:00:34]} 9. Bb5 {[%emt 0:00:58][%cal Oe3e4]} a6 {[%emt 0:05:07]} 10. Bxd7+ {[%emt 0:00:52] Black is slightly better.} Nxd7 {[%emt 0:00:05]} 11. Nxd7 {[%emt 0:00:33]} Qxd7 {[%emt 0:00:05] [#]} 12. b3 $146 {[%emt 0:00:25]} ({Predecessor:} 12. O-O O-O 13. Re1 Rad8 14. b3 f6 15. Bb2 e5 16. h3 e4 17. Nh2 f5 18. c4 dxc4 19. bxc4 {0-1 (38) Awad Alek,M-Al Hadarani,H (2323) Amman 2006}) 12... a5 {[%emt 0:01:41]} 13. Ba3 {[%emt 0:04:06]} Ba6 {[%emt 0:03:40]} 14. dxc5 {[%emt 0:01:57]} bxc5 {[%emt 0:04:43][%cal Bb6c5,Bc5c4][%mdl 32]} 15. Rc1 {[%emt 0:02:11]} c4 {[%emt 0:02:58] Black is more active.} 16. Bxd6 {[%emt 0:01:44]} Qxd6 {[%emt 0:00:18]} 17. b4 {[%emt 0:04:03]} (17. Nd4 $17) 17... axb4 $19 {[%emt 0:01:29]} 18. Qa4+ {[%emt 0:00:34]} Ke7 {[%emt 0:00:06][%cal Ob4b3] And now ...b3! would win.} 19. Qxb4 {[%emt 0:01:00]} (19. Nd4 {was necessary.}) 19... Qxb4 {[%emt 0:01:29]} 20. cxb4 {[%emt 0:00:06]} Bb7 {[%emt 0:00:44]} 21. Rc2 {[%emt 0:08:11]} Ra4 {[%emt 0:00:25]} 22. b5 {[%emt 0:03:56]} Rha8 {[%emt 0:00:42]} 23. Kd2 {[%emt 0:01:55]} Rxa2 {[%emt 0:00:29]} 24. Rhc1 {[%emt 0:00:28]} Kd6 {[%emt 0:01:06]} 25. Nd4 {[%emt 0:03:54]} Kc5 {[%emt 0:01:24] White must now prevent ...e5.} 26. f4 {[%emt 0:01:50]} Bc8 {[%emt 0:01:29]} 27. Rb1 {[%emt 0:01:23]} Kb6 {[%emt 0:05:50]} 28. Rbb2 {[%emt 0:00:29]} Rxb2 {[%emt 0:01:32]} 29. Rxb2 {[%emt 0:00:11]} Ra3 {[%emt 0:00:03] [#] Hoping for ...c3+.} 30. g3 $2 {[%emt 0:01:33]} (30. Rc2) 30... c3+ {[%emt 0:00:12] Black took control after the opening.  Weighted Error Value: White=0.66/Black=0.10 (very precise)} 0-1

[Event "44th Chess Olympiad Women 2022"]
[Site "Chennai"]
[Date "2022.07.29"]
[Round "1.10"]
[White "Balabayeva, Xeniya"]
[Black "Natareno, Elvia"]
[Result "1-0"]
[ECO "B31"]
[WhiteElo "2198"]
[BlackElo "1581"]
[Annotator "TA"]
[PlyCount "54"]
[EventDate "2022.07.29"]
[EventType "team-tourn"]
[EventCountry "IND"]
[SourceTitle "playchess.com"]
[Source "ChessBase"]
[SourceQuality "1"]
[WhiteTeam "Kazakhstan"]
[BlackTeam "Guatemala"]
[WhiteTeamCountry "KAZ"]
[BlackTeamCountry "GUA"]
[TimeControl "40/5400+30:1800+30"]

{[%evp 10,54,45,26,47,43,39,47,91,81,348,357,359,361,341,336,347,357,347,339,377,359,453,443,497,387,475,465,483,464,479,419,423,-996,2434,527,623,564,622,529,506,-539,2548,505,604,587,1359]} 1. e4 {[%emt 0:00:03]} c5 {[%emt 0:00:15]} 2. Nf3 {[%emt 0:00:13]} Nc6 {[%emt 0:00:43]} 3. Bb5 {[%emt 0:00:25]} g6 {[%emt 0:00:58]} 4. O-O {[%emt 0:01:01]} Bg7 {[%emt 0:00:42]} 5. Re1 {[%emt 0:00:55]} d6 {[%emt 0:01:30]} 6. c3 {[%emt 0:01:29]} Nf6 {[%emt 0:02:17] B31: Sicilian: 2...Nc6 3 Bb5 g6.} 7. e5 {[%emt 0:04:20]} Nd5 {[%emt 0:03:22]} 8. d4 {[%emt 0:03:25] [#]} cxd4 $146 {[%emt 0:01:22] White is slightly better.} ({Predecessor:} 8... O-O 9. Na3 cxd4 10. cxd4 Bf5 11. Nc2 Bxc2 12. Qxc2 Rc8 13. Qb3 e6 14. Bg5 Nxd4 15. Bxd8 Nxb3 16. axb3 Rfxd8 17. Rxa7 {0-1 (28) Kratky,P (1514)-Nagy Goede,P (1431) LSS email 2011}) 9. Nxd4 {[%emt 0:01:15]} O-O $2 {[%emt 0:04:04][%mdl 8192] [#]} (9... Qb6 $16) 10. Nxc6 $18 {[%emt 0:01:52]} bxc6 {[%emt 0:00:14]} 11. Bxc6 {[%emt 0:00:57]} Nb6 {[%emt 0:00:40]} 12. exd6 {[%emt 0:02:18]} exd6 {[%emt 0:01:27]} 13. Bxa8 {[%emt 0:00:14]} Nxa8 {[%emt 0:00:09]} 14. Be3 {[%emt 0:00:33]} Nb6 {[%emt 0:04:37]} 15. Bd4 {[%emt 0:01:10]} f6 {[%emt 0:03:40]} 16. Nd2 {[%emt 0:03:46]} Bb7 {[%emt 0:04:36]} 17. Nf1 {[%emt 0:06:48]} Qd7 {[%emt 0:01:52]} 18. Bxb6 {[%emt 0:02:35]} axb6 {[%emt 0:00:10]} 19. Qb3+ {[%emt 0:00:06]} Kh8 {[%emt 0:00:32]} 20. Qb4 {[%emt 0:02:58]} b5 21. Qxb5 $4 {[%emt 0:00:30][%mdl 8192] [#]} h5 $4 {[%emt 0:03:20][%mdl 8192]} 22. Qb6 {[%emt 0:02:05]} d5 {[%emt 0:02:25]} 23. Rad1 {[%emt 0:01:56]} Rf7 {[%emt 0:02:07]} 24. Qb4 {[%emt 0:11:10]} Bf8 {[%emt 0:03:20]} 25. Nd2 $4 {[%emt 0:01:38][%mdl 8192]} Qb5 $4 {[%emt 0:09:44][%mdl 8192]} 26. Qd4 {[%emt 0:02:01]} (26. Qxb5 $142 Kg8 27. Re8) 26... Qd7 {[%emt 0:05:42]} 27. Nb3 {[%emt 0:00:33]} Bc5 {[%emt 0:00:43] Weighted Error Value: White=1.43/Black=0.73} 1-0